[Event "*** SCC Grand Prix: Titled Tuesday Blitz"]
[Site "Chess.com"]
[Date "2020.08.04"]
[Round "7"]
[White "effefe"]
[Black "ChronicUnhappiness"]
[Result "1-0"]
[WhiteElo "2143"]
[BlackElo "2367"]
[TimeControl "180+1"]
[EndTime "15:01:10 PDT"]
[Termination "effefe won by checkmate"]

1. d4 {[%clk 0:02:59.9]} 1... Nf6 {[%clk 0:02:59]} 2. c4 {[%clk 0:02:55.6]} 2...
e6 {[%clk 0:02:58.7]} 3. Nf3 {[%clk 0:02:55.2]} 3... b6 {[%clk 0:02:58.1]} 4. a3
{[%clk 0:02:54.4]} 4... Bb7 {[%clk 0:02:34.9]} 5. Nc3 {[%clk 0:02:53.2]} 5...
Be7 {[%clk 0:02:34.8]} 6. e3 {[%clk 0:02:49.8]} 6... O-O {[%clk 0:02:34.5]} 7.
Bd3 {[%clk 0:02:49.9]} 7... d5 {[%clk 0:02:33]} 8. O-O {[%clk 0:02:50]} 8...
dxc4 {[%clk 0:02:32.2]} 9. Bxc4 {[%clk 0:02:49.9]} 9... Nbd7 {[%clk 0:02:32]}
10. b4 {[%clk 0:02:49.8]} 10... c5 {[%clk 0:02:29.4]} 11. dxc5 {[%clk 0:02:49]}
11... bxc5 {[%clk 0:02:29.3]} 12. b5 {[%clk 0:02:49.4]} 12... Qc7 {[%clk
0:02:18.7]} 13. a4 {[%clk 0:02:40.6]} 13... Ng4 {[%clk 0:02:14.9]} 14. g3 {[%clk
0:02:26.7]} 14... Bf6 {[%clk 0:02:13.9]} 15. Bb2 {[%clk 0:02:19.6]} 15... Nde5
{[%clk 0:01:40.2]} 16. Nxe5 {[%clk 0:02:11.1]} 16... Nxe5 {[%clk 0:01:39.4]} 17.
Be2 {[%clk 0:01:58.7]} 17... Rad8 {[%clk 0:01:38.5]} 18. Qc2 {[%clk 0:01:59.1]}
18... Nf3+ {[%clk 0:01:30.9]} 19. Bxf3 {[%clk 0:01:57.6]} 19... Bxf3 {[%clk
0:01:31.8]} 20. Ne2 {[%clk 0:01:17.1]} 20... Bxb2 {[%clk 0:01:17.4]} 21. Qxb2
{[%clk 0:01:17]} 21... Qd7 {[%clk 0:01:09]} 22. Nf4 {[%clk 0:01:00.3]} 22... Qd6
{[%clk 0:00:23.7]} 23. Rfc1 {[%clk 0:00:43.7]} 23... e5 {[%clk 0:00:23.3]} 24.
Ng2 {[%clk 0:00:43.8]} 24... Rfe8 {[%clk 0:00:15.6]} 25. Qc3 {[%clk 0:00:42.5]}
25... Rc8 {[%clk 0:00:13.7]} 26. Ne1 {[%clk 0:00:39.2]} 26... Be4 {[%clk
0:00:12.7]} 27. Rd1 {[%clk 0:00:35.3]} 27... Qf6 {[%clk 0:00:11.7]} 28. Rd2
{[%clk 0:00:31.2]} 28... c4 {[%clk 0:00:11.8]} 29. Rad1 {[%clk 0:00:29.7]} 29...
h5 {[%clk 0:00:11.1]} 30. Rd6 {[%clk 0:00:25.7]} 30... Qg5 {[%clk 0:00:11.3]}
31. f3 {[%clk 0:00:19.6]} 31... Ba8 {[%clk 0:00:10]} 32. e4 {[%clk 0:00:16.9]}
32... h4 {[%clk 0:00:10]} 33. Kg2 {[%clk 0:00:16.4]} 33... hxg3 {[%clk
0:00:09.4]} 34. hxg3 {[%clk 0:00:17.3]} 34... Rc7 {[%clk 0:00:07.9]} 35. Nc2
{[%clk 0:00:16.4]} 35... Qg6 {[%clk 0:00:07.3]} 36. Rxg6 {[%clk 0:00:15]} 36...
fxg6 {[%clk 0:00:06.9]} 37. Ne3 {[%clk 0:00:15.1]} 37... Rce7 {[%clk 0:00:07.5]}
38. Nd5 {[%clk 0:00:15.2]} 38... Rf7 {[%clk 0:00:08.4]} 39. Qxc4 {[%clk
0:00:15]} 39... Ref8 {[%clk 0:00:08.9]} 40. Ne7+ {[%clk 0:00:14.7]} 40... Kh7
{[%clk 0:00:08.8]} 41. Rh1# {[%clk 0:00:14.7]} 1-0

[Event "*** SCC Grand Prix: Titled Tuesday Blitz"]
[Site "Chess.com"]
[Date "2020.08.04"]
[Round "7"]
[White "Slovak_fighter2000"]
[Black "Lagmantr"]
[Result "1/2-1/2"]
[WhiteElo "2457"]
[BlackElo "2624"]
[TimeControl "180+1"]
[EndTime "15:01:16 PDT"]
[Termination "Game drawn by repetition"]

1. d4 {[%clk 0:03:00.9]} 1... d5 {[%clk 0:02:59.6]} 2. Nf3 {[%clk 0:02:59.5]}
2... Nf6 {[%clk 0:02:59.9]} 3. Bf4 {[%clk 0:02:59.5]} 3... g6 {[%clk 0:03:00.3]}
4. e3 {[%clk 0:02:59.5]} 4... Bg7 {[%clk 0:03:00.8]} 5. Be2 {[%clk 0:03:00]}
5... O-O {[%clk 0:03:01.3]} 6. O-O {[%clk 0:03:00.5]} 6... b6 {[%clk 0:03:01.5]}
7. h3 {[%clk 0:03:00.7]} 7... Bb7 {[%clk 0:03:01.8]} 8. c4 {[%clk 0:03:00.5]}
8... dxc4 {[%clk 0:02:59.4]} 9. Bxc4 {[%clk 0:02:59.6]} 9... Nbd7 {[%clk
0:02:59.7]} 10. Nc3 {[%clk 0:02:59.3]} 10... Ne4 {[%clk 0:02:58.9]} 11. Nxe4
{[%clk 0:02:52.3]} 11... Bxe4 {[%clk 0:02:59.8]} 12. Nd2 {[%clk 0:02:52.6]}
12... Bb7 {[%clk 0:02:59.2]} 13. Qe2 {[%clk 0:02:47.1]} 13... e5 {[%clk
0:02:58.6]} 14. dxe5 {[%clk 0:02:46.9]} 14... Nxe5 {[%clk 0:02:58.4]} 15. Bxe5
{[%clk 0:02:32]} 15... Bxe5 {[%clk 0:02:57.2]} 16. Nf3 {[%clk 0:02:29.4]} 16...
Bxf3 {[%clk 0:02:52.4]} 17. gxf3 {[%clk 0:02:26.3]} 17... Qg5+ {[%clk
0:02:46.2]} 18. Kh1 {[%clk 0:02:25.9]} 18... Qh4 {[%clk 0:02:46.6]} 19. Kg2
{[%clk 0:02:25.5]} 19... Bxb2 {[%clk 0:02:45.6]} 20. Rad1 {[%clk 0:02:15.2]}
20... Bg7 {[%clk 0:02:36.2]} 21. f4 {[%clk 0:02:08]} 21... g5 {[%clk 0:02:28.9]}
22. fxg5 {[%clk 0:01:54]} 22... Qxg5+ {[%clk 0:02:27.5]} 23. Qg4 {[%clk
0:01:54.6]} 23... Qxg4+ {[%clk 0:02:22.4]} 24. hxg4 {[%clk 0:01:55.5]} 24...
Rad8 {[%clk 0:02:22.6]} 25. Bb3 {[%clk 0:01:52.6]} 25... c5 {[%clk 0:02:21.2]}
26. Rxd8 {[%clk 0:01:42.8]} 26... Rxd8 {[%clk 0:02:20.7]} 27. Rd1 {[%clk
0:01:43.3]} 27... Rxd1 {[%clk 0:02:20.4]} 28. Bxd1 {[%clk 0:01:44.2]} 28... b5
{[%clk 0:02:18.9]} 29. Kf3 {[%clk 0:01:37]} 29... Bf6 {[%clk 0:02:15.8]} 30. Ke4
{[%clk 0:01:36.2]} 30... Bh4 {[%clk 0:02:08.4]} 31. f4 {[%clk 0:01:32.2]} 31...
Bf2 {[%clk 0:02:07.5]} 32. Kf3 {[%clk 0:01:27.7]} 32... Bg1 {[%clk 0:02:07.5]}
33. e4 {[%clk 0:01:27.8]} 33... c4 {[%clk 0:02:05.5]} 34. e5 {[%clk 0:01:25.1]}
34... a5 {[%clk 0:01:59]} 35. Be2 {[%clk 0:01:22.2]} 35... a4 {[%clk 0:01:52.7]}
36. Ke4 {[%clk 0:01:19.1]} 36... Bh2 {[%clk 0:01:49.2]} 37. f5 {[%clk
0:01:12.2]} 37... Kg7 {[%clk 0:01:46.9]} 38. Kd5 {[%clk 0:01:03.6]} 38... c3
{[%clk 0:01:33.8]} 39. Bd1 {[%clk 0:00:47.7]} 39... a3 {[%clk 0:01:30.8]} 40. e6
{[%clk 0:00:32.4]} 40... fxe6+ {[%clk 0:01:27.3]} 41. Kxe6 {[%clk 0:00:33.3]}
41... b4 {[%clk 0:01:21.2]} 42. f6+ {[%clk 0:00:27.8]} 42... Kf8 {[%clk
0:01:17.2]} 43. Bc2 {[%clk 0:00:27.9]} 43... h6 {[%clk 0:01:15.7]} 44. Bb3
{[%clk 0:00:26.3]} 44... Bg3 {[%clk 0:01:07.5]} 45. Kf5 {[%clk 0:00:26.2]} 45...
Bf2 {[%clk 0:01:04.2]} 46. Kg6 {[%clk 0:00:25.5]} 46... Be3 {[%clk 0:01:04.2]}
47. Kf5 {[%clk 0:00:25.1]} 47... Bd4 {[%clk 0:01:01.7]} 48. Kg6 {[%clk
0:00:25.2]} 48... Ke8 {[%clk 0:00:57.7]} 49. f7+ {[%clk 0:00:21.1]} 49... Kf8
{[%clk 0:00:50]} 50. Kxh6 {[%clk 0:00:21.2]} 50... c2 {[%clk 0:00:49.7]} 51.
Bxc2 {[%clk 0:00:21.4]} 51... Kxf7 {[%clk 0:00:50.6]} 52. Bb3+ {[%clk
0:00:20.6]} 52... Kf8 {[%clk 0:00:50.2]} 53. g5 {[%clk 0:00:20.9]} 53... Bg7+
{[%clk 0:00:50.6]} 54. Kg6 {[%clk 0:00:20.9]} 54... Bc3 {[%clk 0:00:51]} 55. Kf5
{[%clk 0:00:21.3]} 55... Bb2 {[%clk 0:00:51.9]} 56. g6 {[%clk 0:00:21.8]} 56...
Bc3 {[%clk 0:00:52.8]} 57. Ke4 {[%clk 0:00:22.2]} 57... Bb2 {[%clk 0:00:53.7]}
58. Bf7 {[%clk 0:00:21.5]} 58... Kg7 {[%clk 0:00:53.9]} 59. Kd3 {[%clk
0:00:21.9]} 59... Bc3 {[%clk 0:00:51.3]} 60. Kc2 {[%clk 0:00:22.1]} 60... Bf6
{[%clk 0:00:50.4]} 61. Kb3 {[%clk 0:00:23]} 61... Bc3 {[%clk 0:00:51]} 62. Kc2
{[%clk 0:00:23]} 62... Bb2 {[%clk 0:00:50.9]} 63. Kb3 {[%clk 0:00:23.9]} 63...
Bc3 {[%clk 0:00:51.8]} 64. Kc2 {[%clk 0:00:24]} 1/2-1/2

[Event "*** SCC Grand Prix: Titled Tuesday Blitz"]
[Site "Chess.com"]
[Date "2020.08.04"]
[Round "7"]
[White "xberli"]
[Black "PotapovaM"]
[Result "0-1"]
[WhiteElo "2333"]
[BlackElo "2536"]
[TimeControl "180+1"]
[EndTime "15:01:18 PDT"]
[Termination "PotapovaM won on time"]

1. e4 {[%clk 0:03:00.9]} 1... c5 {[%clk 0:02:59.4]} 2. Nf3 {[%clk 0:03:00.5]}
2... d6 {[%clk 0:03:00]} 3. d4 {[%clk 0:03:00.6]} 3... cxd4 {[%clk 0:03:00.9]}
4. Nxd4 {[%clk 0:03:01.4]} 4... Nf6 {[%clk 0:03:01.5]} 5. Nc3 {[%clk 0:03:01.6]}
5... a6 {[%clk 0:03:02.2]} 6. Bg5 {[%clk 0:03:01.5]} 6... e6 {[%clk 0:03:02.2]}
7. f4 {[%clk 0:03:01.6]} 7... h6 {[%clk 0:03:02.9]} 8. Bh4 {[%clk 0:03:00.3]}
8... Qb6 {[%clk 0:03:02.3]} 9. Qd2 {[%clk 0:02:59.5]} 9... Qxb2 {[%clk
0:03:02.3]} 10. Rb1 {[%clk 0:02:59.8]} 10... Qa3 {[%clk 0:03:02.7]} 11. Be2
{[%clk 0:03:00.2]} 11... Be7 {[%clk 0:02:54.5]} 12. O-O {[%clk 0:02:52.7]} 12...
O-O {[%clk 0:02:52]} 13. e5 {[%clk 0:02:37.3]} 13... dxe5 {[%clk 0:02:46.6]} 14.
fxe5 {[%clk 0:02:38.2]} 14... Nd5 {[%clk 0:02:44.9]} 15. Bxe7 {[%clk 0:02:24.8]}
15... Qxe7 {[%clk 0:02:38]} 16. Ne4 {[%clk 0:02:19.4]} 16... Nd7 {[%clk
0:02:29.9]} 17. c4 {[%clk 0:02:02.7]} 17... Nc7 {[%clk 0:02:18.6]} 18. Nf6+
{[%clk 0:01:26.2]} 18... gxf6 {[%clk 0:02:10.4]} 19. exf6 {[%clk 0:01:27.1]}
19... Nxf6 {[%clk 0:02:10.4]} 20. Qxh6 {[%clk 0:01:24.1]} 20... Nh7 {[%clk
0:01:41.8]} 21. Rb3 {[%clk 0:01:19.2]} 21... f5 {[%clk 0:01:29.9]} 22. Rg3+
{[%clk 0:01:09.2]} 22... Kh8 {[%clk 0:01:30.2]} 23. Nf3 {[%clk 0:01:06.2]} 23...
Qf6 {[%clk 0:01:24.6]} 24. Rg6 {[%clk 0:01:03.2]} 24... Qe7 {[%clk 0:01:16.4]}
25. Kh1 {[%clk 0:00:32.3]} 25... Bd7 {[%clk 0:01:15.4]} 26. Ne5 {[%clk
0:00:28.7]} 26... Rf6 {[%clk 0:01:09.1]} 27. Bh5 {[%clk 0:00:24.1]} 27... Bc6
{[%clk 0:01:04.4]} 28. Rd1 {[%clk 0:00:15]} 28... Raf8 {[%clk 0:00:36]} 29. c5
{[%clk 0:00:12]} 29... Rc8 {[%clk 0:00:32.2]} 30. Rd6 {[%clk 0:00:11.1]} 30...
a5 {[%clk 0:00:23.8]} 31. a3 {[%clk 0:00:10.4]} 31... a4 {[%clk 0:00:23.9]} 32.
h3 {[%clk 0:00:10.7]} 32... Ra8 {[%clk 0:00:23.7]} 33. Kh2 {[%clk 0:00:10.9]}
33... Rb8 {[%clk 0:00:23.7]} 34. Kh1 {[%clk 0:00:10.5]} 34... Rc8 {[%clk
0:00:23.7]} 35. Kh2 {[%clk 0:00:10.7]} 35... Ne8 {[%clk 0:00:18.2]} 36. Rd4
{[%clk 0:00:09.6]} 36... Bd5 {[%clk 0:00:14.4]} 37. Rh4 {[%clk 0:00:08.9]} 37...
Qc7 {[%clk 0:00:12.6]} 38. Rxf6 {[%clk 0:00:08.1]} 38... Qxe5+ {[%clk
0:00:12.3]} 0-1

[Event "*** SCC Grand Prix: Titled Tuesday Blitz"]
[Site "Chess.com"]
[Date "2020.08.04"]
[Round "7"]
[White "Ural_bogatyr"]
[Black "PauloCesarCosta_sad"]
[Result "1-0"]
[WhiteElo "2366"]
[BlackElo "2235"]
[TimeControl "180+1"]
[EndTime "15:01:21 PDT"]
[Termination "Ural_bogatyr won on time"]

1. d4 {[%clk 0:03:00.9]} 1... d5 {[%clk 0:02:57.8]} 2. Bf4 {[%clk 0:02:57.8]}
2... e6 {[%clk 0:02:57.9]} 3. e3 {[%clk 0:02:58.1]} 3... Bd6 {[%clk 0:02:58.2]}
4. Bg3 {[%clk 0:02:57.9]} 4... Nf6 {[%clk 0:02:58.7]} 5. Nf3 {[%clk 0:02:57.2]}
5... c5 {[%clk 0:02:51.5]} 6. Nbd2 {[%clk 0:02:55.4]} 6... Qc7 {[%clk
0:02:50.3]} 7. Ne5 {[%clk 0:02:54.7]} 7... Nbd7 {[%clk 0:02:14.8]} 8. f4 {[%clk
0:02:52.3]} 8... Qb6 {[%clk 0:02:02.3]} 9. c3 {[%clk 0:02:02.1]} 9... Qxb2
{[%clk 0:01:54.4]} 10. Rc1 {[%clk 0:02:01.3]} 10... Qxa2 {[%clk 0:01:47.6]} 11.
Bd3 {[%clk 0:01:58.1]} 11... O-O {[%clk 0:01:39]} 12. O-O {[%clk 0:01:51.7]}
12... Qa5 {[%clk 0:01:29.5]} 13. Bh4 {[%clk 0:01:33.4]} 13... c4 {[%clk
0:01:25.4]} 14. Bb1 {[%clk 0:01:32.4]} 14... Ba3 {[%clk 0:01:19.8]} 15. Rc2
{[%clk 0:01:21.9]} 15... b5 {[%clk 0:01:13.9]} 16. g4 {[%clk 0:01:06.6]} 16...
a6 {[%clk 0:01:08.3]} 17. g5 {[%clk 0:01:06.1]} 17... Ne8 {[%clk 0:01:04]} 18.
Ndf3 {[%clk 0:00:37.8]} 18... Nc7 {[%clk 0:00:58.9]} 19. Nc6 {[%clk 0:00:24.5]}
19... Qa4 {[%clk 0:00:53.8]} 20. Nfe5 {[%clk 0:00:19.4]} 20... Nxe5 {[%clk
0:00:49.2]} 21. Nxe5 {[%clk 0:00:18.5]} 21... a5 {[%clk 0:00:41.2]} 22. Qf3
{[%clk 0:00:18]} 22... b4 {[%clk 0:00:36.6]} 23. Rg2 {[%clk 0:00:16.2]} 23... b3
{[%clk 0:00:29.2]} 24. Ng4 {[%clk 0:00:16.4]} 24... Ne8 {[%clk 0:00:24.1]} 25.
Nf6+ {[%clk 0:00:16.2]} 25... Nxf6 {[%clk 0:00:19]} 26. gxf6 {[%clk 0:00:16.5]}
26... g6 {[%clk 0:00:19.9]} 27. f5 {[%clk 0:00:16]} 27... exf5 {[%clk
0:00:13.6]} 28. Qf4 {[%clk 0:00:16.2]} 28... Kh8 {[%clk 0:00:09.1]} 29. Qh6
{[%clk 0:00:15.6]} 29... Rg8 {[%clk 0:00:09.3]} 30. Bg3 {[%clk 0:00:14.6]} 30...
Bf8 {[%clk 0:00:09]} 31. Qh3 {[%clk 0:00:13.3]} 31... Be6 {[%clk 0:00:08.7]} 32.
Be5 {[%clk 0:00:13.4]} 32... f4 {[%clk 0:00:07.7]} 33. Qh4 {[%clk 0:00:12.6]}
33... Qd7 {[%clk 0:00:06.1]} 34. exf4 {[%clk 0:00:12.4]} 34... Bf5 {[%clk
0:00:05.1]} 35. Rg5 {[%clk 0:00:12.2]} 35... Bxb1 {[%clk 0:00:04.3]} 36. Rxb1
{[%clk 0:00:12.2]} 36... a4 {[%clk 0:00:04.1]} 37. f5 {[%clk 0:00:12.4]} 37...
a3 {[%clk 0:00:03.3]} 38. fxg6 {[%clk 0:00:11.7]} 1-0

[Event "*** SCC Grand Prix: Titled Tuesday Blitz"]
[Site "Chess.com"]
[Date "2020.08.04"]
[Round "7"]
[White "tan275"]
[Black "FMJoseHerrera"]
[Result "0-1"]
[WhiteElo "2253"]
[BlackElo "2505"]
[TimeControl "180+1"]
[EndTime "15:01:24 PDT"]
[Termination "FMJoseHerrera won by checkmate"]

1. d4 {[%clk 0:03:00.9]} 1... f6 {[%clk 0:03:00.9]} 2. c4 {[%clk 0:02:58.3]}
2... g6 {[%clk 0:03:01.8]} 3. g3 {[%clk 0:02:57.5]} 3... Kf7 {[%clk 0:03:01.6]}
4. Bg2 {[%clk 0:02:58.4]} 4... Kg7 {[%clk 0:03:01.7]} 5. e4 {[%clk 0:02:57.9]}
5... h5 {[%clk 0:03:01.7]} 6. h4 {[%clk 0:02:53.6]} 6... Nh6 {[%clk 0:03:00.9]}
7. Ne2 {[%clk 0:02:48.2]} 7... Ng4 {[%clk 0:03:00.2]} 8. f3 {[%clk 0:02:46.3]}
8... Nh6 {[%clk 0:02:57.4]} 9. Nbc3 {[%clk 0:02:43.6]} 9... e6 {[%clk
0:02:47.5]} 10. Be3 {[%clk 0:02:41.5]} 10... c6 {[%clk 0:02:42.1]} 11. Qd2
{[%clk 0:02:39.4]} 11... d5 {[%clk 0:02:40.5]} 12. O-O {[%clk 0:02:16.1]} 12...
dxe4 {[%clk 0:02:30.9]} 13. Bxh6+ {[%clk 0:02:10.3]} 13... Rxh6 {[%clk
0:02:31.8]} 14. fxe4 {[%clk 0:02:10.4]} 14... e5 {[%clk 0:02:26.8]} 15. d5
{[%clk 0:02:07.7]} 15... Bg4 {[%clk 0:02:24.1]} 16. Kh2 {[%clk 0:02:02]} 16...
g5 {[%clk 0:02:15.7]} 17. Rad1 {[%clk 0:01:58.3]} 17... gxh4 {[%clk 0:02:06.6]}
18. gxh4 {[%clk 0:01:26.7]} 18... Rg6 {[%clk 0:01:56.3]} 19. Qe1 {[%clk
0:01:15.6]} 19... Qb6 {[%clk 0:01:35.2]} 20. Rd2 {[%clk 0:00:52.4]} 20... Kh7
{[%clk 0:01:23.3]} 21. Ng3 {[%clk 0:00:48.6]} 21... Bh6 {[%clk 0:01:20.9]} 22.
Rdf2 {[%clk 0:00:37.3]} 22... Bf4 {[%clk 0:01:20]} 23. Ne2 {[%clk 0:00:37.3]}
23... Bxe2 {[%clk 0:01:19.4]} 24. Rxe2 {[%clk 0:00:31.3]} 24... Bxg3+ {[%clk
0:01:18.6]} 25. Qxg3 {[%clk 0:00:31.2]} 25... Rxg3 {[%clk 0:01:19.5]} 26. Kxg3
{[%clk 0:00:31.8]} 26... Nd7 {[%clk 0:01:17.1]} 27. Bh3 {[%clk 0:00:31.9]} 27...
Rg8+ {[%clk 0:01:15.7]} 28. Kh2 {[%clk 0:00:31.4]} 28... Qc7 {[%clk 0:01:03.1]}
29. Bf5+ {[%clk 0:00:29.9]} 29... Kh6 {[%clk 0:01:02.5]} 30. Rff2 {[%clk
0:00:25.7]} 30... cxd5 {[%clk 0:01:01.7]} 31. cxd5 {[%clk 0:00:23.1]} 31... Nf8
{[%clk 0:00:56.4]} 32. Rc2 {[%clk 0:00:20.5]} 32... Qb6 {[%clk 0:00:56.2]} 33.
Rg2 {[%clk 0:00:17.3]} 33... Ng6 {[%clk 0:00:48]} 34. d6 {[%clk 0:00:11.6]}
34... Qxd6 {[%clk 0:00:45.7]} 35. Rcd2 {[%clk 0:00:11.2]} 35... Qb6 {[%clk
0:00:42.6]} 36. Rd7 {[%clk 0:00:10.9]} 36... Qe3 {[%clk 0:00:38.9]} 37. Rg3
{[%clk 0:00:07.8]} 37... Qf2+ {[%clk 0:00:37.6]} 38. Rg2 {[%clk 0:00:05]} 38...
Qxh4+ {[%clk 0:00:37.8]} 39. Kg1 {[%clk 0:00:05.1]} 39... Qe1+ {[%clk
0:00:38.4]} 40. Kh2 {[%clk 0:00:05.4]} 40... h4 {[%clk 0:00:31.5]} 41. Rxb7
{[%clk 0:00:04.7]} 41... h3 {[%clk 0:00:27]} 42. Kxh3 {[%clk 0:00:04.1]} 42...
Qh1+ {[%clk 0:00:26.7]} 43. Kg3 {[%clk 0:00:02.1]} 43... Nf4+ {[%clk 0:00:25.9]}
44. Kf3 {[%clk 0:00:02]} 44... Qxg2+ {[%clk 0:00:25.7]} 45. Ke3 {[%clk 0:00:02]}
45... Qe2# {[%clk 0:00:26.3]} 0-1

[Event "*** SCC Grand Prix: Titled Tuesday Blitz"]
[Site "Chess.com"]
[Date "2020.08.04"]
[Round "7"]
[White "GoltsevDmitry2000"]
[Black "chenxiaoyuer"]
[Result "0-1"]
[WhiteElo "2606"]
[BlackElo "2454"]
[TimeControl "180+1"]
[EndTime "15:01:30 PDT"]
[Termination "chenxiaoyuer won on time"]

1. b3 {[%clk 0:02:53.3]} 1... Nf6 {[%clk 0:02:49.8]} 2. Bb2 {[%clk 0:02:54.2]}
2... g6 {[%clk 0:02:46.1]} 3. g3 {[%clk 0:02:55.1]} 3... Bg7 {[%clk 0:02:46.2]}
4. Bg2 {[%clk 0:02:56]} 4... O-O {[%clk 0:02:46.6]} 5. Nf3 {[%clk 0:02:52.1]}
5... d6 {[%clk 0:02:46.1]} 6. O-O {[%clk 0:02:48]} 6... e5 {[%clk 0:02:40.6]} 7.
d3 {[%clk 0:02:29.3]} 7... Nfd7 {[%clk 0:02:24.6]} 8. Nbd2 {[%clk 0:02:26.9]}
8... e4 {[%clk 0:02:23.9]} 9. Bxg7 {[%clk 0:02:07.1]} 9... exf3 {[%clk
0:02:23.1]} 10. Bxf8 {[%clk 0:01:56.9]} 10... fxg2 {[%clk 0:02:24]} 11. Kxg2
{[%clk 0:01:50.3]} 11... Nxf8 {[%clk 0:02:21.8]} 12. e4 {[%clk 0:01:48.6]} 12...
Nc6 {[%clk 0:02:11.3]} 13. f4 {[%clk 0:01:36.2]} 13... f5 {[%clk 0:02:08.3]} 14.
Nf3 {[%clk 0:01:34.2]} 14... Qf6 {[%clk 0:02:05.3]} 15. Qe2 {[%clk 0:01:32.2]}
15... fxe4 {[%clk 0:02:00.1]} 16. dxe4 {[%clk 0:01:33.1]} 16... Bg4 {[%clk
0:01:59.5]} 17. Qe3 {[%clk 0:00:58.9]} 17... Re8 {[%clk 0:01:50.3]} 18. h3
{[%clk 0:00:52.7]} 18... Bf5 {[%clk 0:01:27.2]} 19. e5 {[%clk 0:00:45.5]} 19...
dxe5 {[%clk 0:01:26.1]} 20. fxe5 {[%clk 0:00:46.1]} 20... Nxe5 {[%clk
0:01:24.2]} 21. Rae1 {[%clk 0:00:42.4]} 21... Nxf3 {[%clk 0:01:19.6]} 22. Qxe8
{[%clk 0:00:41.3]} 22... Nxe1+ {[%clk 0:01:19]} 23. Rxe1 {[%clk 0:00:40.1]}
23... Bd7 {[%clk 0:01:10.8]} 24. Qe3 {[%clk 0:00:15.4]} 24... Qf5 {[%clk
0:01:08.3]} 25. g4 {[%clk 0:00:13.8]} 25... Qxc2+ {[%clk 0:01:08.1]} 26. Re2
{[%clk 0:00:13.1]} 26... Qc6+ {[%clk 0:01:03.4]} 27. Kh2 {[%clk 0:00:13]} 27...
Qd6+ {[%clk 0:01:02.8]} 28. Qg3 {[%clk 0:00:12.3]} 28... Kf7 {[%clk 0:00:58.6]}
29. Rf2+ {[%clk 0:00:11.9]} 29... Ke7 {[%clk 0:00:57]} 30. Re2+ {[%clk
0:00:10.2]} 30... Ne6 {[%clk 0:00:55]} 31. h4 {[%clk 0:00:10.1]} 31... Qxg3+
{[%clk 0:00:51.2]} 32. Kxg3 {[%clk 0:00:11]} 32... c5 {[%clk 0:00:50.6]} 33. h5
{[%clk 0:00:08.7]} 33... Kf6 {[%clk 0:00:49.2]} 34. Rd2 {[%clk 0:00:07.4]} 34...
Nd4 {[%clk 0:00:48.7]} 35. hxg6 {[%clk 0:00:05.3]} 35... hxg6 {[%clk 0:00:49.6]}
36. Rd3 {[%clk 0:00:05.8]} 36... Kg5 {[%clk 0:00:48.6]} 37. Re3 {[%clk
0:00:06.1]} 37... Bxg4 {[%clk 0:00:46.9]} 38. Re5+ {[%clk 0:00:04.5]} 38... Nf5+
{[%clk 0:00:46.9]} 39. Kf2 {[%clk 0:00:04.5]} 39... b6 {[%clk 0:00:46.8]} 40.
Rd5 {[%clk 0:00:04.9]} 40... Kf4 {[%clk 0:00:46.2]} 41. Rd7 {[%clk 0:00:05.8]}
41... Nd4 {[%clk 0:00:44.4]} 42. Rxa7 {[%clk 0:00:05.4]} 42... Bf5 {[%clk
0:00:44]} 43. Rb7 {[%clk 0:00:05.4]} 43... g5 {[%clk 0:00:44.1]} 44. Rxb6 {[%clk
0:00:05.7]} 44... g4 {[%clk 0:00:45]} 45. Rb8 {[%clk 0:00:03.2]} 45... g3+
{[%clk 0:00:44.7]} 46. Ke1 {[%clk 0:00:03.2]} 46... Nf3+ {[%clk 0:00:43.6]} 47.
Ke2 {[%clk 0:00:02.1]} 47... g2 {[%clk 0:00:42.6]} 48. Rg8 {[%clk 0:00:02.6]}
48... Bg4 {[%clk 0:00:39.9]} 49. Rf8+ {[%clk 0:00:02.9]} 49... Kg3 {[%clk
0:00:39.7]} 50. Kd3 {[%clk 0:00:02.5]} 50... g1=Q {[%clk 0:00:39.5]} 51. Kc4
{[%clk 0:00:03.4]} 51... Qd4+ {[%clk 0:00:38.8]} 52. Kb5 {[%clk 0:00:03.3]}
52... Qb4+ {[%clk 0:00:39.1]} 53. Kc6 {[%clk 0:00:03.6]} 53... c4 {[%clk
0:00:39.5]} 0-1